[Event "*** Titled Tuesday Blitz"]
[Site "Chess.com"]
[Date "2020.04.21"]
[Round "5"]
[White "Boundless_Strike"]
[Black "Batica1984"]
[Result "1-0"]
[WhiteElo "2622"]
[BlackElo "2763"]
[TimeControl "180+1"]
[EndTime "10:56:40 PDT"]
[Termination "Boundless_Strike won by resignation"]

1. d4 {[%clk 0:03:00.9]} 1... Nf6 {[%clk 0:02:58.7]} 2. Nf3 {[%clk 0:03:01.8]}
2... e6 {[%clk 0:02:58.2]} 3. e3 {[%clk 0:03:01.3]} 3... c5 {[%clk 0:02:53.2]}
4. Bd3 {[%clk 0:03:01.3]} 4... d5 {[%clk 0:02:49.4]} 5. O-O {[%clk 0:03:01.4]}
5... Nc6 {[%clk 0:02:49.7]} 6. c3 {[%clk 0:03:00.7]} 6... Bd6 {[%clk 0:02:49.1]}
7. Nbd2 {[%clk 0:03:01.2]} 7... O-O {[%clk 0:02:48.2]} 8. dxc5 {[%clk
0:03:01.5]} 8... Bxc5 {[%clk 0:02:47.5]} 9. b4 {[%clk 0:03:02.4]} 9... Bd6
{[%clk 0:02:41.9]} 10. Bb2 {[%clk 0:03:02.9]} 10... Qe7 {[%clk 0:02:37.4]} 11.
e4 {[%clk 0:03:00.9]} 11... Rd8 {[%clk 0:02:32.8]} 12. Qe2 {[%clk 0:02:59.6]}
12... e5 {[%clk 0:02:09.7]} 13. a3 {[%clk 0:02:39.6]} 13... Bg4 {[%clk
0:01:42.9]} 14. h3 {[%clk 0:02:35.5]} 14... Bh5 {[%clk 0:01:41.2]} 15. c4 {[%clk
0:02:35.7]} 15... dxe4 {[%clk 0:01:10.8]} 16. Nxe4 {[%clk 0:02:31.3]} 16... Nxe4
{[%clk 0:01:08]} 17. Bxe4 {[%clk 0:02:30.5]} 17... Nd4 {[%clk 0:00:53.8]} 18.
Bxd4 {[%clk 0:02:27.9]} 18... exd4 {[%clk 0:00:54.7]} 19. Qd3 {[%clk 0:02:27]}
19... Bxf3 {[%clk 0:00:46.5]} 20. Bxf3 {[%clk 0:02:27.1]} 20... Rac8 {[%clk
0:00:42.2]} 21. Rae1 {[%clk 0:02:21.7]} 21... Qc7 {[%clk 0:00:39.4]} 22. c5
{[%clk 0:02:14.1]} 22... Be7 {[%clk 0:00:36.9]} 23. Re4 {[%clk 0:01:49.5]} 23...
Bf6 {[%clk 0:00:35.5]} 24. Rfe1 {[%clk 0:01:49.6]} 24... a5 {[%clk 0:00:33]} 25.
R4e2 {[%clk 0:01:14.9]} 25... axb4 {[%clk 0:00:32.5]} 26. axb4 {[%clk
0:01:15.8]} 26... g6 {[%clk 0:00:32.4]} 27. Rc2 {[%clk 0:01:11.8]} 27... Re8
{[%clk 0:00:27.7]} 28. Rb1 {[%clk 0:01:11.2]} 28... Qe7 {[%clk 0:00:26.6]} 29.
g3 {[%clk 0:01:08.4]} 29... Kg7 {[%clk 0:00:26.4]} 30. Kg2 {[%clk 0:01:08.8]}
30... h5 {[%clk 0:00:26.4]} 31. Ra1 {[%clk 0:01:02.8]} 31... h4 {[%clk
0:00:25.9]} 32. Ra7 {[%clk 0:00:54.8]} 32... Rc7 {[%clk 0:00:25.8]} 33. Re2
{[%clk 0:00:47.2]} 33... Qd8 {[%clk 0:00:21.6]} 34. Rxe8 {[%clk 0:00:46.6]}
34... Qxe8 {[%clk 0:00:21.9]} 35. Rxb7 {[%clk 0:00:44.8]} 35... Rxb7 {[%clk
0:00:22]} 36. Bxb7 {[%clk 0:00:45.7]} 36... hxg3 {[%clk 0:00:22.3]} 37. fxg3
{[%clk 0:00:45.8]} 37... Qe1 {[%clk 0:00:19.5]} 38. b5 {[%clk 0:00:41.3]} 38...
Qc1 {[%clk 0:00:19]} 39. c6 {[%clk 0:00:38.6]} 39... Qb2+ {[%clk 0:00:19]} 40.
Kf3 {[%clk 0:00:39]} 40... Be5 {[%clk 0:00:17.6]} 41. Ke4 {[%clk 0:00:39.4]}
41... Bc7 {[%clk 0:00:17.1]} 42. Qxd4+ {[%clk 0:00:36.7]} 1-0

[Event "*** Titled Tuesday Blitz"]
[Site "Chess.com"]
[Date "2020.04.21"]
[Round "5"]
[White "tomsishere"]
[Black "GMMatamoros"]
[Result "0-1"]
[WhiteElo "2359"]
[BlackElo "2528"]
[TimeControl "180+1"]
[EndTime "10:56:42 PDT"]
[Termination "GMMatamoros won by checkmate"]

1. d4 {[%clk 0:03:00.9]} 1... Nf6 {[%clk 0:02:59.1]} 2. c4 {[%clk 0:02:59.3]}
2... c5 {[%clk 0:02:59.2]} 3. d5 {[%clk 0:02:59]} 3... g6 {[%clk 0:02:59.4]} 4.
Nc3 {[%clk 0:02:58.4]} 4... Bg7 {[%clk 0:02:59.9]} 5. e4 {[%clk 0:02:57.2]} 5...
d6 {[%clk 0:03:00.5]} 6. Nge2 {[%clk 0:02:55.1]} 6... e6 {[%clk 0:02:59.3]} 7.
Ng3 {[%clk 0:02:52.5]} 7... exd5 {[%clk 0:02:59.3]} 8. cxd5 {[%clk 0:02:52.1]}
8... h5 {[%clk 0:02:59.4]} 9. Be2 {[%clk 0:02:50.6]} 9... Nbd7 {[%clk 0:02:59]}
10. f3 {[%clk 0:02:47]} 10... h4 {[%clk 0:02:55]} 11. Nf1 {[%clk 0:02:45.5]}
11... a6 {[%clk 0:02:48.5]} 12. a4 {[%clk 0:02:44.6]} 12... Nh7 {[%clk
0:02:48.4]} 13. Bf4 {[%clk 0:02:35.2]} 13... Ne5 {[%clk 0:02:46.6]} 14. Nd2
{[%clk 0:02:31.4]} 14... O-O {[%clk 0:02:44]} 15. O-O {[%clk 0:02:11.2]} 15...
f5 {[%clk 0:02:42.3]} 16. exf5 {[%clk 0:02:05.5]} 16... Bxf5 {[%clk 0:02:40.1]}
17. Be3 {[%clk 0:02:03.6]} 17... Qe7 {[%clk 0:02:38.2]} 18. Nde4 {[%clk
0:02:01.6]} 18... Rae8 {[%clk 0:02:27.5]} 19. Kh1 {[%clk 0:01:54]} 19... h3
{[%clk 0:02:14.5]} 20. g3 {[%clk 0:01:34.4]} 20... g5 {[%clk 0:01:57.9]} 21.
Nxg5 {[%clk 0:01:10.8]} 21... Nxg5 {[%clk 0:01:53.8]} 22. Bxg5 {[%clk
0:01:11.7]} 22... Qxg5 {[%clk 0:01:53]} 23. f4 {[%clk 0:01:12.1]} 23... Qg6
{[%clk 0:01:49.3]} 24. Bh5 {[%clk 0:01:02.7]} 24... Be4+ {[%clk 0:01:32.4]} 25.
Kg1 {[%clk 0:01:00.6]} 25... Nf3+ {[%clk 0:00:39.3]} 26. Bxf3 {[%clk 0:00:58.9]}
26... Bd4+ {[%clk 0:00:39]} 27. Kh1 {[%clk 0:00:58.4]} 27... Bxf3+ {[%clk
0:00:38.9]} 28. Rxf3 {[%clk 0:00:50.9]} 28... Re7 {[%clk 0:00:33.8]} 29. Qf1
{[%clk 0:00:46]} 29... Qg4 {[%clk 0:00:31]} 30. Ne2 {[%clk 0:00:36.2]} 30...
Bxb2 {[%clk 0:00:29.6]} 31. Rb1 {[%clk 0:00:36.1]} 31... Bg7 {[%clk 0:00:29.2]}
32. Ng1 {[%clk 0:00:36.1]} 32... Rfe8 {[%clk 0:00:26.9]} 33. Nxh3 {[%clk
0:00:22.6]} 33... Re1 {[%clk 0:00:25.8]} 34. Rxe1 {[%clk 0:00:21.2]} 34... Rxe1
{[%clk 0:00:26.7]} 35. Qxe1 {[%clk 0:00:19.7]} 35... Qxf3+ {[%clk 0:00:27.2]}
36. Kg1 {[%clk 0:00:19.9]} 36... Bd4+ {[%clk 0:00:27.7]} 37. Nf2 {[%clk
0:00:20.2]} 37... Kf8 {[%clk 0:00:28.2]} 38. Kf1 {[%clk 0:00:18.4]} 38... b5
{[%clk 0:00:28]} 39. axb5 {[%clk 0:00:14.9]} 39... axb5 {[%clk 0:00:28.9]} 40.
Qb1 {[%clk 0:00:14.3]} 40... Qxf2# {[%clk 0:00:26.9]} 0-1

[Event "*** Titled Tuesday Blitz"]
[Site "Chess.com"]
[Date "2020.04.21"]
[Round "5"]
[White "Durarbayli"]
[Black "Taron_Shagbazyan"]
[Result "1-0"]
[WhiteElo "2818"]
[BlackElo "2628"]
[TimeControl "180+1"]
[EndTime "10:56:44 PDT"]
[Termination "Durarbayli won by resignation"]

1. e4 {[%clk 0:03:00.9]} 1... e5 {[%clk 0:02:59.7]} 2. Nf3 {[%clk 0:03:00]} 2...
Nc6 {[%clk 0:02:59.8]} 3. Bb5 {[%clk 0:02:59.9]} 3... a6 {[%clk 0:03:00.2]} 4.
Ba4 {[%clk 0:02:59.8]} 4... Nf6 {[%clk 0:03:00.5]} 5. d3 {[%clk 0:03:00]} 5...
d6 {[%clk 0:02:53.4]} 6. c3 {[%clk 0:02:59.3]} 6... Be7 {[%clk 0:02:52.3]} 7.
Nbd2 {[%clk 0:02:58.7]} 7... O-O {[%clk 0:02:52]} 8. Nf1 {[%clk 0:02:58.5]} 8...
b5 {[%clk 0:02:50.6]} 9. Bc2 {[%clk 0:02:58.3]} 9... d5 {[%clk 0:02:44.6]} 10.
exd5 {[%clk 0:02:57.7]} 10... Nxd5 {[%clk 0:02:41.8]} 11. Ng3 {[%clk 0:02:57.3]}
11... h5 {[%clk 0:02:22.4]} 12. Nxh5 {[%clk 0:02:46.4]} 12... b4 {[%clk
0:02:18.1]} 13. Bd2 {[%clk 0:02:41.5]} 13... bxc3 {[%clk 0:01:59]} 14. bxc3
{[%clk 0:02:41.1]} 14... Ba3 {[%clk 0:01:53.9]} 15. Rb1 {[%clk 0:02:34.1]} 15...
Bg4 {[%clk 0:01:53.9]} 16. Ng3 {[%clk 0:02:31.7]} 16... Nf4 {[%clk 0:01:45.2]}
17. O-O {[%clk 0:01:42.6]} 17... Nxd3 {[%clk 0:01:16]} 18. h3 {[%clk 0:01:39.1]}
18... Be6 {[%clk 0:00:37.4]} 19. Bg5 {[%clk 0:01:24.8]} 19... Nb2 {[%clk
0:00:23.9]} 20. Qe2 {[%clk 0:01:06.9]} 20... f6 {[%clk 0:00:18.3]} 21. Bc1
{[%clk 0:00:50.4]} 21... Nc4 {[%clk 0:00:16]} 22. Qe4 {[%clk 0:00:49.3]} 22...
Qd5 {[%clk 0:00:13.1]} 23. Qh7+ {[%clk 0:00:46.3]} 23... Kf7 {[%clk 0:00:13.3]}
24. Bg6+ {[%clk 0:00:41.3]} 24... Ke7 {[%clk 0:00:12.8]} 25. Qxg7+ {[%clk
0:00:36.5]} 25... Bf7 {[%clk 0:00:10.6]} 26. Bxa3+ {[%clk 0:00:20.6]} 26... Nxa3
{[%clk 0:00:11.5]} 27. Rbd1 {[%clk 0:00:20.5]} 27... Qc5 {[%clk 0:00:05.4]} 28.
Ne4 {[%clk 0:00:17.5]} 1-0

[Event "*** Titled Tuesday Blitz"]
[Site "Chess.com"]
[Date "2020.04.21"]
[Round "5"]
[White "Bajecny"]
[Black "LuckSlayeer"]
[Result "1/2-1/2"]
[WhiteElo "2375"]
[BlackElo "2516"]
[TimeControl "180+1"]
[EndTime "10:56:44 PDT"]
[Termination "Game drawn by agreement"]

1. d4 {[%clk 0:03:00.9]} 1... Nf6 {[%clk 0:02:59.5]} 2. Nf3 {[%clk 0:03:01]}
2... e6 {[%clk 0:02:59.2]} 3. c4 {[%clk 0:03:01.2]} 3... Bb4+ {[%clk 0:02:57.9]}
4. Nbd2 {[%clk 0:03:01.3]} 4... O-O {[%clk 0:02:57.6]} 5. a3 {[%clk 0:03:01.8]}
5... Be7 {[%clk 0:02:57.6]} 6. e4 {[%clk 0:03:01.5]} 6... d5 {[%clk 0:02:57.8]}
7. e5 {[%clk 0:03:01.9]} 7... Nfd7 {[%clk 0:02:58.5]} 8. Bd3 {[%clk 0:03:00.2]}
8... c5 {[%clk 0:02:58.7]} 9. cxd5 {[%clk 0:02:58.9]} 9... exd5 {[%clk
0:02:58.3]} 10. O-O {[%clk 0:02:55.2]} 10... cxd4 {[%clk 0:02:57.6]} 11. Re1
{[%clk 0:02:55.6]} 11... Nc6 {[%clk 0:02:57.2]} 12. Nb3 {[%clk 0:02:54.8]} 12...
Re8 {[%clk 0:02:44.2]} 13. Nbxd4 {[%clk 0:02:53.8]} 13... Nxd4 {[%clk
0:02:40.5]} 14. Nxd4 {[%clk 0:02:54.7]} 14... Nc5 {[%clk 0:02:39]} 15. Bc2
{[%clk 0:02:42.5]} 15... Bf8 {[%clk 0:02:03.2]} 16. b4 {[%clk 0:02:28]} 16...
Ne6 {[%clk 0:02:01.6]} 17. Nf5 {[%clk 0:02:28.5]} 17... b6 {[%clk 0:01:38.1]}
18. Qh5 {[%clk 0:02:10.2]} 18... g6 {[%clk 0:01:24.5]} 19. Nh6+ {[%clk
0:02:10.4]} 19... Bxh6 {[%clk 0:01:15.3]} 20. Qxh6 {[%clk 0:02:11.3]} 20... d4
{[%clk 0:01:09.1]} 21. Bb3 {[%clk 0:02:09.8]} 21... Qe7 {[%clk 0:00:56.6]} 22.
Bxe6 {[%clk 0:01:56.1]} 22... Bxe6 {[%clk 0:00:56.4]} 23. Bg5 {[%clk 0:01:56.4]}
23... Qf8 {[%clk 0:00:56.7]} 24. Qxf8+ {[%clk 0:01:54]} 24... Rxf8 {[%clk
0:00:55]} 25. Rad1 {[%clk 0:01:54.9]} 25... Rfc8 {[%clk 0:00:43.1]} 26. Rxd4
{[%clk 0:01:54.6]} 26... Kf8 {[%clk 0:00:37.8]} 27. Red1 {[%clk 0:01:51.6]}
27... Ke8 {[%clk 0:00:33.1]} 28. Bf6 {[%clk 0:01:47.9]} 28... Rab8 {[%clk
0:00:31.5]} 29. h4 {[%clk 0:01:44]} 29... h5 {[%clk 0:00:29.1]} 30. f3 {[%clk
0:01:43]} 30... Kf8 {[%clk 0:00:24.8]} 31. R1d2 {[%clk 0:01:42.7]} 31... Rc1+
{[%clk 0:00:17.8]} 32. Kf2 {[%clk 0:01:42.8]} 32... Re8 {[%clk 0:00:17.7]} 33.
Rd8 {[%clk 0:01:40.9]} 33... Rc8 {[%clk 0:00:16]} 34. Rxe8+ {[%clk 0:01:40.6]}
34... Kxe8 {[%clk 0:00:15.4]} 35. Rd4 {[%clk 0:01:40.8]} 35... Kf8 {[%clk
0:00:14.2]} 36. g4 {[%clk 0:01:40]} 36... hxg4 {[%clk 0:00:14.5]} 37. fxg4
{[%clk 0:01:40.9]} 37... Kg8 {[%clk 0:00:14.3]} 38. Kg3 {[%clk 0:01:40.5]} 38...
Kh7 {[%clk 0:00:14.3]} 39. Kf4 {[%clk 0:01:38.7]} 39... Re8 {[%clk 0:00:13.7]}
40. Kg5 {[%clk 0:01:38.2]} 40... Rc8 {[%clk 0:00:13.7]} 41. a4 {[%clk
0:01:36.5]} 41... Re8 {[%clk 0:00:12.8]} 42. a5 {[%clk 0:01:36.4]} 42... bxa5
{[%clk 0:00:12.8]} 43. bxa5 {[%clk 0:01:37.3]} 43... Rc8 {[%clk 0:00:12.8]} 44.
h5 {[%clk 0:01:30.6]} 44... Rc4 {[%clk 0:00:10]} 45. hxg6+ {[%clk 0:01:27.7]}
45... fxg6 {[%clk 0:00:10.3]} 46. Rf4 {[%clk 0:01:17.6]} 46... Rxf4 {[%clk
0:00:09.3]} 47. Kxf4 {[%clk 0:01:18.5]} 47... Kg8 {[%clk 0:00:09.7]} 48. g5
{[%clk 0:01:16.6]} 48... Kf7 {[%clk 0:00:09.3]} 49. Ke4 {[%clk 0:01:17]} 49...
Ke8 {[%clk 0:00:08.2]} 50. Kd4 {[%clk 0:01:17.5]} 50... Kd7 {[%clk 0:00:08.2]}
51. Kc5 {[%clk 0:01:18.1]} 51... Bf5 {[%clk 0:00:07.8]} 52. Kb5 {[%clk
0:01:16.6]} 52... Bd3+ {[%clk 0:00:07.6]} 53. Kb4 {[%clk 0:01:16.7]} 53... Ke6
{[%clk 0:00:06.9]} 54. Kc5 {[%clk 0:01:16.7]} 54... a6 {[%clk 0:00:07.3]}
1/2-1/2

[Event "*** Titled Tuesday Blitz"]
[Site "Chess.com"]
[Date "2020.04.21"]
[Round "5"]
[White "losersgame"]
[Black "tan275"]
[Result "1/2-1/2"]
[WhiteElo "2337"]
[BlackElo "2150"]
[TimeControl "180+1"]
[EndTime "10:56:46 PDT"]
[Termination "Game drawn by repetition"]

1. d4 {[%clk 0:03:00.9]} 1... Nf6 {[%clk 0:02:59.5]} 2. c4 {[%clk 0:03:00.5]}
2... e6 {[%clk 0:02:59.6]} 3. Nc3 {[%clk 0:03:00.7]} 3... d5 {[%clk 0:02:59.9]}
4. Bg5 {[%clk 0:03:00.2]} 4... Be7 {[%clk 0:02:59.9]} 5. e3 {[%clk 0:03:00.3]}
5... h6 {[%clk 0:03:00.1]} 6. Bh4 {[%clk 0:03:00]} 6... O-O {[%clk 0:02:59]} 7.
Nf3 {[%clk 0:03:00]} 7... b6 {[%clk 0:02:58.5]} 8. Qc2 {[%clk 0:02:58]} 8... Bb7
{[%clk 0:02:56]} 9. Rd1 {[%clk 0:02:55.8]} 9... Nbd7 {[%clk 0:02:54.4]} 10. Be2
{[%clk 0:02:53.2]} 10... c5 {[%clk 0:02:50.1]} 11. dxc5 {[%clk 0:02:51.3]} 11...
Nxc5 {[%clk 0:02:48.2]} 12. O-O {[%clk 0:02:46.1]} 12... Rc8 {[%clk 0:02:46.5]}
13. Ne5 {[%clk 0:02:29.3]} 13... Nfe4 {[%clk 0:02:26.8]} 14. Bxe7 {[%clk
0:02:16]} 14... Qxe7 {[%clk 0:02:27.7]} 15. cxd5 {[%clk 0:02:15.7]} 15... exd5
{[%clk 0:02:25.4]} 16. Nf3 {[%clk 0:02:08.1]} 16... Nxc3 {[%clk 0:01:51.7]} 17.
bxc3 {[%clk 0:02:07.7]} 17... Ne4 {[%clk 0:01:50.4]} 18. Rd3 {[%clk 0:01:48.7]}
18... Ba6 {[%clk 0:01:46]} 19. Rd4 {[%clk 0:01:40]} 19... Bxe2 {[%clk
0:01:29.2]} 20. Qxe2 {[%clk 0:01:40.1]} 20... Nxc3 {[%clk 0:01:28.2]} 21. Qa6
{[%clk 0:01:40.1]} 21... Rc5 {[%clk 0:01:21.5]} 22. h3 {[%clk 0:01:34.2]} 22...
Rfc8 {[%clk 0:01:19.9]} 23. Qd3 {[%clk 0:01:12.7]} 23... Ra5 {[%clk 0:01:12.6]}
24. Kh2 {[%clk 0:00:41.3]} 24... Qc7+ {[%clk 0:01:00]} 25. g3 {[%clk 0:00:38.7]}
25... Nxa2 {[%clk 0:00:46.3]} 26. Rg4 {[%clk 0:00:38.2]} 26... Qd7 {[%clk
0:00:18.9]} 27. Nd4 {[%clk 0:00:31.1]} 27... Rc3 {[%clk 0:00:10.8]} 28. Qb1
{[%clk 0:00:27]} 28... g6 {[%clk 0:00:10.1]} 29. Rxg6+ {[%clk 0:00:22.5]} 29...
fxg6 {[%clk 0:00:09.7]} 30. Qxg6+ {[%clk 0:00:23.1]} 30... Qg7 {[%clk
0:00:09.8]} 31. Qe8+ {[%clk 0:00:18.4]} 31... Qf8 {[%clk 0:00:09.7]} 32. Qg6+
{[%clk 0:00:17.9]} 32... Qg7 {[%clk 0:00:10]} 33. Qe8+ {[%clk 0:00:17.6]} 33...
Qf8 {[%clk 0:00:09.8]} 34. Qg6+ {[%clk 0:00:16.5]} 34... Qg7 {[%clk 0:00:10.2]}
1/2-1/2

[Event "*** Titled Tuesday Blitz"]
[Site "Chess.com"]
[Date "2020.04.21"]
[Round "5"]
[White "HrvojeZagreb"]
[Black "ChessAintFun"]
[Result "0-1"]
[WhiteElo "2125"]
[BlackElo "2571"]
[TimeControl "180+1"]
[EndTime "10:56:47 PDT"]
[Termination "ChessAintFun won by checkmate"]

1. d4 {[%clk 0:02:51.4]} 1... Nf6 {[%clk 0:01:26.4]} 2. Bf4 {[%clk 0:02:50.7]}
2... g6 {[%clk 0:01:26]} 3. Nc3 {[%clk 0:02:50.9]} 3... d5 {[%clk 0:01:26.6]} 4.
e3 {[%clk 0:02:51.2]} 4... Bg7 {[%clk 0:01:27]} 5. h4 {[%clk 0:02:51.3]} 5... h5
{[%clk 0:01:27]} 6. Nf3 {[%clk 0:02:50.9]} 6... O-O {[%clk 0:01:27.7]} 7. Ne5
{[%clk 0:02:47.1]} 7... c5 {[%clk 0:01:28.1]} 8. Be2 {[%clk 0:02:43]} 8... Nc6
{[%clk 0:01:28.3]} 9. f3 {[%clk 0:02:27]} 9... cxd4 {[%clk 0:01:22.8]} 10. exd4
{[%clk 0:02:26.9]} 10... Ne8 {[%clk 0:01:23.6]} 11. Qd2 {[%clk 0:02:22.9]} 11...
Nxe5 {[%clk 0:01:22.4]} 12. dxe5 {[%clk 0:02:18.7]} 12... Nc7 {[%clk 0:01:21.4]}
13. O-O-O {[%clk 0:02:17.2]} 13... d4 {[%clk 0:01:20.3]} 14. Qxd4 {[%clk
0:02:10.3]} 14... Qxd4 {[%clk 0:01:21.2]} 15. Rxd4 {[%clk 0:02:10.5]} 15... Ne6
{[%clk 0:01:21.9]} 16. Re4 {[%clk 0:01:52.9]} 16... Nxf4 {[%clk 0:01:21.9]} 17.
Rxf4 {[%clk 0:01:53.8]} 17... Bh6 {[%clk 0:01:22.3]} 18. g3 {[%clk 0:01:53.2]}
18... Be6 {[%clk 0:01:22.4]} 19. Kb1 {[%clk 0:01:52.5]} 19... Bxf4 {[%clk
0:01:22.4]} 20. gxf4 {[%clk 0:01:53.4]} 20... Rfd8 {[%clk 0:01:23]} 21. Ne4
{[%clk 0:01:53.4]} 21... Rd4 {[%clk 0:01:23.3]} 22. c3 {[%clk 0:01:47.6]} 22...
Rdd8 {[%clk 0:01:17.8]} 23. Kc1 {[%clk 0:01:11.8]} 23... Bxa2 {[%clk 0:01:16.9]}
24. Rg1 {[%clk 0:01:02.4]} 24... Bd5 {[%clk 0:01:16.5]} 25. f5 {[%clk
0:01:00.3]} 25... Kh7 {[%clk 0:01:15.7]} 26. e6 {[%clk 0:00:52.7]} 26... Bxe4
{[%clk 0:01:11.6]} 27. fxe4 {[%clk 0:00:49.7]} 27... fxe6 {[%clk 0:01:08]} 28.
Rxg6 {[%clk 0:00:41.1]} 28... exf5 {[%clk 0:01:08.3]} 29. exf5 {[%clk
0:00:41.3]} 29... Rd6 {[%clk 0:01:08.7]} 30. Rg5 {[%clk 0:00:39.2]} 30... Rf8
{[%clk 0:01:08.8]} 31. Bxh5 {[%clk 0:00:38.5]} 31... Kh6 {[%clk 0:01:06.7]} 32.
Bg6 {[%clk 0:00:35.2]} 32... e6 {[%clk 0:01:06.2]} 33. Rh5+ {[%clk 0:00:29]}
33... Kg7 {[%clk 0:01:06.2]} 34. Rh7+ {[%clk 0:00:28.8]} 34... Kf6 {[%clk
0:01:06.7]} 35. Rh5 {[%clk 0:00:18.5]} 35... exf5 {[%clk 0:01:06.9]} 36. Bxf5
{[%clk 0:00:16.6]} 36... Rd5 {[%clk 0:01:06.5]} 37. Bg4 {[%clk 0:00:14.9]} 37...
Rxh5 {[%clk 0:01:07.1]} 38. Bxh5 {[%clk 0:00:15.8]} 38... Rh8 {[%clk 0:01:07.8]}
39. Bf3 {[%clk 0:00:15.6]} 39... b6 {[%clk 0:01:08.4]} 40. h5 {[%clk 0:00:15.8]}
40... Kf5 {[%clk 0:01:09.1]} 41. Bd1 {[%clk 0:00:15.6]} 41... Kf4 {[%clk
0:01:10]} 42. Kc2 {[%clk 0:00:15.9]} 42... Kg5 {[%clk 0:01:10.9]} 43. b4 {[%clk
0:00:16.2]} 43... Rd8 {[%clk 0:01:11.6]} 44. Be2 {[%clk 0:00:15.6]} 44... Re8
{[%clk 0:01:12.2]} 45. Bd1 {[%clk 0:00:15.4]} 45... Re3 {[%clk 0:01:12.3]} 46.
Kd2 {[%clk 0:00:14.1]} 46... Rh3 {[%clk 0:01:12.3]} 47. c4 {[%clk 0:00:13.3]}
47... Kf4 {[%clk 0:01:12.8]} 48. c5 {[%clk 0:00:12.1]} 48... Ke5 {[%clk
0:01:13.4]} 49. cxb6 {[%clk 0:00:11.9]} 49... axb6 {[%clk 0:01:13.4]} 50. Kc2
{[%clk 0:00:12.1]} 50... Kd4 {[%clk 0:01:13.8]} 51. Kb2 {[%clk 0:00:12]} 51...
Kc4 {[%clk 0:01:14.1]} 52. Bg4 {[%clk 0:00:10]} 52... Rh2+ {[%clk 0:01:14.4]}
53. Kc1 {[%clk 0:00:09.7]} 53... Kxb4 {[%clk 0:01:14.9]} 54. Bf3 {[%clk
0:00:09.9]} 54... Kc3 {[%clk 0:01:15.2]} 55. Kd1 {[%clk 0:00:09]} 55... b5
{[%clk 0:01:15.4]} 56. Kc1 {[%clk 0:00:08.7]} 56... b4 {[%clk 0:01:16]} 57. Kb1
{[%clk 0:00:08.9]} 57... b3 {[%clk 0:01:16.6]} 58. Kc1 {[%clk 0:00:09.1]} 58...
Rf2 {[%clk 0:01:16.2]} 59. Bd1 {[%clk 0:00:06.6]} 59... b2+ {[%clk 0:01:16.1]}
60. Kb1 {[%clk 0:00:06.6]} 60... Rf1 {[%clk 0:01:16.8]} 61. Ka2 {[%clk
0:00:06.8]} 61... Rxd1 {[%clk 0:01:17.1]} 62. h6 {[%clk 0:00:07.7]} 62... Ra1#
{[%clk 0:01:17.6]} 0-1

[Event "*** Titled Tuesday Blitz"]
[Site "Chess.com"]
[Date "2020.04.21"]
[Round "5"]
[White "MPGM"]
[Black "Shazuli9878"]
[Result "0-1"]
[WhiteElo "2538"]
[BlackElo "2407"]
[TimeControl "180+1"]
[EndTime "10:56:48 PDT"]
[Termination "Shazuli9878 won on time"]

1. Nf3 {[%clk 0:03:00.9]} 1... d5 {[%clk 0:02:59.8]} 2. c4 {[%clk 0:02:56.8]}
2... dxc4 {[%clk 0:02:59.3]} 3. e3 {[%clk 0:02:53.9]} 3... Nf6 {[%clk
0:02:57.5]} 4. Bxc4 {[%clk 0:02:53.8]} 4... e6 {[%clk 0:02:58.1]} 5. d4 {[%clk
0:02:53.7]} 5... a6 {[%clk 0:02:58.9]} 6. O-O {[%clk 0:02:53.3]} 6... b5 {[%clk
0:02:59]} 7. Bd3 {[%clk 0:02:48.8]} 7... Bb7 {[%clk 0:02:59]} 8. a4 {[%clk
0:02:47.5]} 8... b4 {[%clk 0:02:57.3]} 9. Nbd2 {[%clk 0:02:47.3]} 9... c5 {[%clk
0:02:57]} 10. e4 {[%clk 0:02:46.7]} 10... c4 {[%clk 0:02:52.7]} 11. Nxc4 {[%clk
0:02:42.8]} 11... Nxe4 {[%clk 0:02:52.2]} 12. Re1 {[%clk 0:02:42.5]} 12... Nf6
{[%clk 0:02:49.9]} 13. a5 {[%clk 0:02:38.8]} 13... Be7 {[%clk 0:02:48.5]} 14.
Qa4+ {[%clk 0:02:31.1]} 14... Bc6 {[%clk 0:02:45.9]} 15. Qb3 {[%clk 0:02:29.8]}
15... O-O {[%clk 0:02:44.3]} 16. Bd2 {[%clk 0:02:24]} 16... Bxf3 {[%clk
0:02:43.7]} 17. gxf3 {[%clk 0:02:21.4]} 17... Qxd4 {[%clk 0:02:43.1]} 18. Bg5
{[%clk 0:02:07.7]} 18... Nd5 {[%clk 0:02:34.4]} 19. Re4 {[%clk 0:02:02.3]} 19...
Qc5 {[%clk 0:02:29.1]} 20. Bd2 {[%clk 0:01:47.5]} 20... Nc6 {[%clk 0:02:24.3]}
21. Rc1 {[%clk 0:01:44.1]} 21... Nxa5 {[%clk 0:02:15.9]} 22. Qd1 {[%clk
0:01:31.7]} 22... Nxc4 {[%clk 0:02:10.5]} 23. Rcxc4 {[%clk 0:01:31.3]} 23... Qb6
{[%clk 0:02:10.3]} 24. Rg4 {[%clk 0:01:27.3]} 24... Rfd8 {[%clk 0:02:04.4]} 25.
Qc2 {[%clk 0:01:23.3]} 25... Nf6 {[%clk 0:02:01.4]} 26. Rh4 {[%clk 0:01:16.4]}
26... g6 {[%clk 0:02:01.5]} 27. Be3 {[%clk 0:01:13.2]} 27... Qd6 {[%clk
0:02:00.2]} 28. Rhd4 {[%clk 0:00:53.8]} 28... Qe5 {[%clk 0:01:52.1]} 29. Rxd8+
{[%clk 0:00:53]} 29... Rxd8 {[%clk 0:01:53]} 30. f4 {[%clk 0:00:17.1]} 30... Qa5
{[%clk 0:01:51]} 31. Rc7 {[%clk 0:00:15.8]} 31... Nd5 {[%clk 0:01:45.2]} 32. Rc8
{[%clk 0:00:10.7]} 32... Nxe3 {[%clk 0:01:43.9]} 33. fxe3 {[%clk 0:00:09.5]}
33... Kg7 {[%clk 0:01:42]} 34. Rxd8 {[%clk 0:00:09.1]} 34... Bxd8 {[%clk
0:01:42]} 35. Kf2 {[%clk 0:00:07.5]} 35... Bf6 {[%clk 0:01:41.8]} 36. b3 {[%clk
0:00:06.1]} 36... Bc3 {[%clk 0:01:39.7]} 37. Qe2 {[%clk 0:00:04.4]} 37... Qd8
{[%clk 0:01:37.1]} 38. Bxa6 {[%clk 0:00:03.6]} 38... Qh4+ {[%clk 0:01:36.8]} 39.
Kg2 {[%clk 0:00:03.7]} 39... h5 {[%clk 0:01:36.5]} 40. Bd3 {[%clk 0:00:02.6]}
40... Qd8 {[%clk 0:01:33.4]} 41. Bc4 {[%clk 0:00:02.3]} 41... Qa8+ {[%clk
0:01:33.1]} 42. Qf3 {[%clk 0:00:01.9]} 42... Qa2+ {[%clk 0:01:32.9]} 43. Qf2
{[%clk 0:00:02.4]} 43... Qb1 {[%clk 0:01:32.6]} 44. Qe2 {[%clk 0:00:01.7]} 44...
Qe4+ {[%clk 0:01:32.2]} 45. Qf3 {[%clk 0:00:02.2]} 45... Qc2+ {[%clk 0:01:32.3]}
46. Qf2 {[%clk 0:00:02.7]} 46... Qc1 {[%clk 0:01:32.6]} 47. Qe2 {[%clk
0:00:02.3]} 47... Bd2 {[%clk 0:01:30.9]} 48. Kf2 {[%clk 0:00:02.1]} 48... Bc3
{[%clk 0:01:27.1]} 49. Kg2 {[%clk 0:00:02.1]} 49... h4 {[%clk 0:01:26.2]} 50.
Kf2 {[%clk 0:00:02.6]} 50... Qh1 {[%clk 0:01:25.9]} 0-1